bitfinex/quotes_SOLUSD_20250607
["timestamp","ask_amount","ask_price","bid_price","bid_amount"]
[1749293952303,13.39931548,152.08,152.04,6.82378169]
[1749293952504,18.32886671,152.08,152.03,13.4013082]
[1749293952689,13.39931548,152.08,152.03,13.4013082]
[1749293953621,4.93243752,152.07,152.03,13.4013082]
[1749293953986,11.75621921,152.07,152.03,13.4013082]
[1749293956827,4.93243752,152.07,152.03,13.4013082]
[1749293957117,4.93243752,152.07,152.04,6.82378169]
[1749293957325,6.82378169,152.08,152.04,6.82378169]
[1749293957489,4.93243752,152.07,152.04,6.82378169]
[1749293959020,4.93243752,152.07,152.04,13.40090609]
[1749293963423,4.93243752,152.07,152.05,6.82378169]
[1749293963626,4.93243752,152.1,152.06,6.82378169]
[1749293963920,4.93243752,152.09,152.06,39.86]
[1749293964126,4.93243752,152.08,152.06,39.86]
[1749293964428,4.93243752,152.09,152.06,39.86]
[1749293964721,6.82378169,152.1,152.06,39.86]
[1749293964927,4.93305465,152.09,152.06,39.86]
[1749293965125,6.82378169,152.1,152.06,39.86]
[1749293965328,11.75683634,152.09,152.06,39.86]
[1749293965528,11.75683634,152.08,152.06,39.86]
[1749293965828,6.82378169,152.08,152.06,39.86]
[1749293966030,11.75683634,152.08,152.06,39.86]
[1749293966206,6.82378169,152.08,152.06,39.86]
[1749293967521,6.82378169,152.09,152.06,39.86]
[1749293967729,4.93305997,152.08,152.06,39.86]
[1749293967931,6.82378169,152.09,152.06,39.86]
[1749293968108,4.93299245,152.08,152.06,39.86]
[1749293969427,6.82378169,152.09,152.06,39.86]
[1749293970920,4.93235778,152.08,152.06,39.86]
[1749293972316,11.50792973,152.08,152.06,39.86]
[1749293974734,4.93235778,152.08,152.06,39.86]
[1749293981741,4.93235778,152.08,152.04,39.86]
[1749293981742,4.93250423,152.07,152.04,39.86]
[1749293981932,11.50848991,152.07,152.04,39.86]
[1749293982129,18.3322716,152.07,152.04,39.86]
[1749293982446,13.39976737,152.07,152.04,39.86]
[1749293982924,18.3322716,152.07,152.04,39.86]
[1749293983124,13.39976737,152.07,152.04,39.86]
[1749293983353,6.82378169,152.07,152.04,39.86]
[1749293983525,11.75628592,152.07,152.04,39.86]
[1749293983930,6.82378169,152.07,152.04,39.86]
[1749293984746,11.75624512,152.07,152.04,39.86]
[1749293985329,4.93246343,152.07,152.04,39.86]
[1749293985539,6.82378169,152.07,152.04,39.86]
[1749293986150,11.75624512,152.07,152.03,63.46138495]
[1749293987318,11.75624512,152.07,152.03,56.63760326]
[1749293987535,11.75624512,152.07,152.03,63.46138495]
[1749293987931,4.93246343,152.07,152.03,63.46138495]
[1749293992263,11.75624512,152.07,152.03,63.46138495]
[1749293992631,11.75624512,152.07,152.03,53.26138495]
[1749293993452,18.33227807,152.07,152.03,46.68378169]
[1749293993650,13.39981464,152.07,152.03,46.68378169]
[1749293994148,18.33227807,152.07,152.03,46.68378169]
[1749293994345,13.39981464,152.07,152.03,46.68378169]
[1749293994752,18.33227807,152.07,152.03,46.68378169]
[1749293994945,13.39981464,152.07,152.03,46.68378169]
[1749293995143,6.82378169,152.07,152.03,53.2614082]
[1749293995359,11.75624512,152.07,152.03,53.2614082]
[1749293998336,4.93246343,152.07,152.03,53.2614082]
[1749294000657,11.5083951,152.07,152.03,46.68378169]
[1749294001055,18.33217679,152.07,152.03,39.86]
[1749294001258,13.39971336,152.07,152.03,39.86]
[1749294001674,18.33217679,152.07,152.03,39.86]
[1749294001892,13.39971336,152.07,152.03,39.86]
[1749294002247,18.33217679,152.07,152.03,39.86]
[1749294002444,13.39971336,152.07,152.03,39.86]
[1749294002843,4.93246343,152.07,152.03,53.26140871]
[1749294003251,13.39940807,152.08,152.03,53.26140871]
[1749294003565,18.3318715,152.08,152.03,53.26140871]
[1749294003766,4.93246343,152.07,152.03,53.26140871]
[1749294005183,11.50844964,152.07,152.03,46.68378169]
[1749294005678,11.50844964,152.07,152.03,39.86]
[1749294006058,6.57598621,152.07,152.03,39.86]
[1749294006362,11.50844964,152.07,152.03,39.86]
[1749294007988,13.39944528,152.08,152.03,53.26141304]
[1749294008155,18.33190871,152.08,152.03,53.26141304]
[1749294008360,4.93246343,152.07,152.03,53.26141304]
[1749294008659,13.39944528,152.08,152.03,53.26141304]
[1749294008870,18.33190871,152.08,152.03,53.26141304]
[1749294009074,13.39944528,152.08,152.03,53.26141304]
[1749294009286,18.33190871,152.08,152.03,53.26141304]
[1749294009585,13.39944528,152.08,152.03,53.26141304]
[1749294009787,4.93246343,152.07,152.03,53.26141304]
[1749294012372,13.39944528,152.08,152.03,53.26141304]
[1749294012672,18.33190871,152.08,152.03,53.26141304]
[1749294012874,4.93246343,152.07,152.03,53.26141304]
[1749294013781,4.93246343,152.07,152.03,46.43763135]
[1749294016083,4.93170303,152.07,152.03,46.43763135]
[1749294016687,4.93186036,152.07,152.03,46.43763135]
[1749294018076,11.50779596,152.07,152.03,39.86]
[1749294018585,18.33157765,152.07,152.03,39.86]
[1749294018763,13.39971729,152.07,152.03,39.86]
[1749294018957,18.33157765,152.07,152.03,39.86]
[1749294019395,18.79181043,152.06,151.94,174.11854127]
[1749294019573,6.82378169,152.0,151.95,46.68378169]
[1749294019883,1.5023,152.04,151.95,6.82378169]
[1749294019884,6.82378169,151.99,151.95,6.82378169]
[1749294020458,6.82378169,151.99,151.94,120.54140231]
[1749294020677,6.82378169,151.99,151.95,6.82378169]
[1749294021980,13.40317599,151.99,151.95,6.82378169]
[1749294023487,6.82378169,151.99,151.95,6.82378169]
[1749294023689,6.82378169,151.99,151.95,13.40477077]
[1749294023982,6.57862099,152.01,151.96,6.82378169]
[1749294024164,6.82378169,152.0,151.96,6.82378169]
[1749294024876,13.40277081,152.0,151.96,6.82378169]
[1749294025077,6.82378169,152.0,151.96,13.40435798]
[1749294025274,13.40244299,152.01,151.96,13.40435798]
[1749294026585,6.82378169,152.0,151.96,6.82378169]
[1749294027284,13.40288669,152.0,151.95,6.82378169]
[1749294027586,6.82378169,151.99,151.95,6.82378169]
[1749294028176,6.82378169,151.99,151.94,120.78378169]
[1749294029386,6.82378169,151.99,151.94,82.88378169]
[1749294030095,6.82378169,151.99,151.94,89.46504409]
[1749294030393,6.82378169,151.99,151.95,6.82378169]
[1749294031088,1.5023,152.04,151.99,6.57938022]
[1749294031269,8.32608169,152.04,152.0,6.82378169]
[1749294032685,8.32608169,152.04,151.99,13.40316191]
[1749294033279,14.90334733,152.04,151.99,13.40316191]
[1749294036096,8.32608169,152.04,151.99,13.40316191]
[1749294036987,8.32608169,152.04,152.0,6.82378169]
[1749294039100,23.84123797,152.07,152.0,13.40253683]
[1749294039399,6.82378169,152.05,152.0,13.40253683]
[1749294041398,6.82378169,152.05,152.01,6.82378169]
[1749294041584,6.82378169,152.05,152.01,13.40219117]
[1749294042901,32.04934969,152.07,152.02,6.82378169]
[1749294043077,32.04934969,152.07,152.03,6.82378169]
[1749294043993,13.39970083,152.07,152.03,6.82378169]
[1749294047309,6.57591914,152.07,152.03,6.82378169]
[1749294047474,25.47343055,152.07,152.03,13.40140823]
[1749294048198,6.82378169,152.07,152.03,13.40140823]
[1749294050378,6.82378169,152.06,152.02,13.40171706]
[1749294050600,6.82378169,152.06,152.02,6.82378169]
[1749294051978,6.82378169,152.03,151.99,17.00378169]
[1749294052177,6.82378169,152.03,151.99,23.58306896]
[1749294052787,13.4015077,152.03,151.99,17.00378169]
[1749294053499,6.82378169,152.02,151.99,10.18]
[1749294054498,6.77171615,152.02,151.99,10.18]
[1749294055302,13.34982698,152.02,151.99,10.18]
[1749294057691,6.57811083,152.02,151.99,10.18]
[1749294059413,18.64964886,152.02,151.96,6.82378169]
[1749294059591,6.82378169,152.0,151.96,32.82378169]
[1749294059791,6.82378169,152.01,151.97,6.82378169]
[1749294060706,13.40243918,152.01,151.97,6.82378169]
[1749294061087,6.82378169,152.01,151.97,13.404005]
[1749294061609,6.82378169,152.02,151.98,6.82378169]
[1749294061817,8.44398169,152.03,151.98,6.82378169]
[1749294062717,15.02173842,152.03,151.98,13.40338995]
[1749294064590,8.44398169,152.03,151.99,6.82378169]
[1749294065719,6.82378169,152.04,152.0,6.82378169]
[1749294068393,6.82378169,152.04,152.0,13.40270672]
[1749294071297,13.40109317,152.04,152.0,6.82378169]
[1749294072196,13.40109317,152.04,151.99,13.40306374]
[1749294073316,13.40109317,152.04,152.0,6.82378169]
[1749294073317,6.82378169,152.04,152.0,6.82378169]
[1749294073526,6.82378169,152.04,151.99,13.40306374]
[1749294074115,6.82378169,152.03,151.99,13.40306374]
[1749294074612,6.82378169,152.03,151.99,6.57928205]
[1749294075114,6.82378169,152.02,151.98,17.00378169]
[1749294075419,6.82378169,152.02,151.98,10.18]
[1749294075924,6.82378169,152.01,151.98,10.18]
[1749294076994,6.82378169,152.01,151.98,16.75980361]
[1749294077207,25.47343055,152.02,151.98,16.75980361]
[1749294079025,6.82378169,152.03,151.98,23.5835853]
[1749294079188,6.82378169,152.02,151.98,23.5835853]
[1749294079928,6.82378169,152.02,151.98,13.4035853]
[1749294080709,13.40187169,152.02,151.97,13.40387168]
[1749294087402,6.71981071,152.03,151.98,6.82378169]
[1749294087610,6.82378169,152.02,151.98,6.82378169]
[1749294089247,6.82378169,152.02,151.98,13.40349801]
[1749294091132,6.82378169,152.03,151.99,6.82378169]
[1749294091815,6.82378169,152.04,151.99,6.82378169]
[1749294092330,6.82378169,152.04,152.0,6.82378169]
[1749294093322,6.82378169,152.04,152.0,13.40244208]
[1749294094230,25.47343055,152.05,152.0,13.40244208]
[1749294094737,6.82378169,152.04,152.0,6.82378169]
[1749294095423,6.82378169,152.04,152.0,13.40268372]
[1749294096133,13.4010663,152.04,152.0,6.82378169]
[1749294096334,13.4010663,152.04,151.99,13.40303758]
[1749294096822,13.4010663,152.04,151.99,6.57925589]
[1749294097139,18.32256512,152.04,151.99,13.40303758]
[1749294097437,6.82378169,152.02,151.98,13.40349103]
[1749294097736,6.82378169,152.02,151.97,13.40392223]
[1749294098516,11.74528051,152.02,151.97,13.40392223]
[1749294099939,6.82378169,152.02,151.97,13.40392223]
[1749294104037,13.4018805,152.02,151.97,13.40392223]
[1749294105430,6.82378169,152.01,151.97,13.40392223]
[1749294120841,6.82378169,152.02,151.97,13.40392223]
[1749294121044,11.74528051,152.02,151.97,13.40392223]
[1749294122238,18.32344121,152.02,151.97,13.40392223]
[1749294122436,13.40194239,152.02,151.97,13.40392223]
[1749294122837,18.32344121,152.02,151.97,13.40392223]
[1749294123025,13.40194239,152.02,151.97,13.40392223]
[1749294123428,18.32344121,152.02,151.97,13.40392223]
[1749294123653,13.40194239,152.02,151.97,13.40392223]
[1749294124041,18.32344121,152.02,151.97,13.40392223]
[1749294124244,13.40194239,152.02,151.97,13.40392223]
[1749294124751,13.40194239,152.02,151.96,10.18]
[1749294124752,6.82378169,151.99,151.96,10.18]
[1749294124929,6.82378169,151.98,151.96,10.18]
[1749294125337,6.82378169,151.97,151.93,39.40557411]
[1749294125536,6.82378169,151.96,151.92,63.42606216]
[1749294127971,6.82378169,151.97,151.93,6.82378169]
[1749294129038,8.34068169,151.99,151.95,6.82378169]
[1749294129361,6.82378169,151.99,151.95,6.82378169]
[1749294130246,6.82378169,151.99,151.96,6.58067912]
[1749294131064,6.82378169,151.99,151.95,13.40473543]
[1749294131363,6.82378169,151.99,151.95,6.58095374]
[1749294131668,6.57895682,152.0,151.95,6.58095374]
[1749294131669,6.82378169,151.98,151.95,6.58095374]
[1749294134470,6.82378169,151.99,151.95,6.58095374]
[1749294134641,6.82378169,151.99,151.95,13.40473543]
[1749294136767,6.82378169,152.02,151.98,6.82378169]
[1749294137058,6.82378169,152.02,151.95,23.03373425]
[1749294137059,4.92149882,152.05,152.0,6.82378169]
[1749294137366,4.92149882,152.05,152.01,6.82378169]
[1749294137367,11.74528051,152.05,152.01,6.82378169]
[1749294137571,6.82378169,152.05,152.01,6.82378169]
[1749294137865,6.82378169,152.05,152.01,13.40192929]
[1749294139266,10.66795927,152.05,152.01,17.24610687]
[1749294139944,10.66795927,152.04,152.01,6.5781476]
[1749294140969,10.66795927,152.05,152.01,17.24610687]
[1749294147473,10.66795927,152.04,152.0,10.66795927]
[1749294147845,10.66795927,152.04,151.99,39.86]
[1749294147846,10.66795927,152.03,151.99,57.1071715]
[1749294148045,10.66795927,152.03,151.99,46.43921223]
[1749294148858,10.66795927,152.03,151.99,39.86]
[1749294149670,18.64964886,152.04,152.0,10.66795927]
[1749294149969,29.31760813,152.04,152.0,10.66795927]
[1749294150271,29.31760813,152.04,151.99,10.66795927]
[1749294150748,29.31760813,152.04,151.99,17.24703057]
[1749294151373,29.31760813,152.04,151.98,10.66795927]
[1749294151374,10.66795927,152.02,151.98,10.66795927]
[1749294152974,10.66795927,152.02,151.97,93.26780644]
[1749294154169,10.66795927,152.01,151.97,36.18]
[1749294156271,23.57114768,152.04,151.97,53.42812204]
[1749294156577,23.57114768,152.04,151.98,10.66795927]
[1749294156578,10.66795927,152.03,151.98,10.66795927]
[1749294157284,10.66795927,152.02,151.98,17.24740072]
[1749294157576,10.66795927,152.03,151.98,17.24740072]
[1749294158556,18.64964886,152.04,151.98,17.24740072]
[1749294158792,12.62949882,152.07,152.01,10.66795927]
[1749294158793,18.64964886,152.06,152.01,10.66795927]
[1749294159081,10.66795927,152.05,152.01,10.66795927]
[1749294159284,10.66795927,152.05,152.01,17.24604861]
[1749294162591,10.66795927,152.05,152.01,10.66795927]
[1749294162881,17.24484106,152.05,152.0,17.2467813]
[1749294165089,6.57688179,152.05,152.0,17.2467813]
[1749294165294,10.66795927,152.05,152.0,17.2467813]
[1749294166501,10.66795927,152.05,152.01,10.66795927]
[1749294166813,12.24325927,152.07,152.03,10.66795927]
[1749294171410,10.66795927,152.07,152.03,17.24551875]
[1749294171853,10.66795927,152.08,152.03,17.24551875]
[1749294172119,10.66795927,152.08,152.04,10.66795927]
[1749294172333,47.61031633,152.09,152.04,10.66795927]
[1749294172798,10.66795927,152.08,152.04,10.66795927]
[1749294174087,43.51772207,152.09,152.04,17.24496583]
[1749294174304,10.66795927,152.08,152.04,17.24496583]
[1749294175217,4.91346172,152.11,152.07,10.66795927]
[1749294175392,0.0678834,152.13,152.07,76.16]
[1749294175602,0.0678834,152.13,152.1,10.66795927]
[1749294175918,10.66795927,152.12,152.08,10.66795927]
[1749294176213,0.0678834,152.13,152.07,20.84795927]
[1749294176214,10.66795927,152.11,152.07,20.84795927]
[1749294176403,10.66795927,152.1,152.07,10.18]
[1749294176606,10.66795927,152.09,152.04,57.28496583]
[1749294176788,10.66795927,152.09,152.05,10.66795927]
[1749294176988,18.933972,152.12,152.05,10.66795927]
[1749294176989,10.66795927,152.1,152.05,10.66795927]
[1749294177314,6.82353741,152.1,152.06,13.39988885]
[1749294177498,6.82353741,152.11,152.06,13.39988885]
[1749294177698,6.82353741,152.12,152.07,6.82353741]
[1749294177916,18.71753226,152.13,152.08,6.82353741]
[1749294177917,6.89142081,152.13,152.08,6.82353741]
[1749294178918,6.82353741,152.12,152.08,6.82353741]
[1749294179343,10.65824817,152.12,152.08,10.65824817]
[1749294180313,10.72613157,152.13,152.09,10.65824817]
[1749294180515,10.72613157,152.13,152.08,10.65824817]
[1749294180695,10.65824817,152.11,152.07,36.65824817]
[1749294180886,10.65824817,152.12,152.07,36.65824817]
[1749294181290,0.0678834,152.13,152.09,10.65824817]
[1749294182902,0.0678834,152.13,152.07,49.01546943]
[1749294183094,0.0678834,152.13,152.11,10.65824817]
[1749294185128,0.0678834,152.13,152.1,10.65824817]
[1749294186123,0.0678834,152.13,152.12,10.65824817]
[1749294187713,0.0678834,152.13,152.11,10.65824817]
[1749294189332,0.0678834,152.13,152.12,10.65824817]
[1749294189533,0.0678834,152.13,152.11,17.23235457]
[1749294190214,0.0678834,152.13,152.11,10.65824817]
[1749294190636,0.0678834,152.13,152.1,17.23272076]
[1749294191051,0.0678834,152.13,152.1,10.65824817]
[1749294191741,0.0678834,152.13,152.09,46.57489967]
[1749294192045,0.0678834,152.13,152.1,10.65824817]
[1749294193619,10.72613157,152.13,152.09,10.65824817]
[1749294193941,10.65824817,152.12,152.08,20.83824817]
[1749294194309,10.65824817,152.12,152.08,10.65824817]
[1749294194733,10.65824817,152.12,152.09,0.5]
[1749294194941,10.65824817,152.12,152.08,10.65824817]
[1749294195432,10.65824817,152.12,152.08,17.23372731]
[1749294196638,10.72613157,152.13,152.09,10.65824817]
[1749294197338,10.72613157,152.13,152.08,17.23372731]
[1749294197727,17.29954495,152.13,152.08,17.23372731]
[1749294198762,17.29954495,152.13,152.08,10.65824817]
[1749294199059,10.65824817,152.12,152.08,10.65824817]
[1749294199440,10.65824817,152.12,152.08,17.23367079]
[1749294200152,0.0678834,152.13,152.11,10.65824817]
[1749294200921,0.0678834,152.13,152.12,10.65824817]
[1749294201886,0.0678834,152.13,152.12,17.23200572]
[1749294202427,0.0678834,152.13,152.12,17.73200572]
[1749294203052,0.0678834,152.13,152.12,11.15824817]
[1749294203735,0.0678834,152.13,152.12,17.73200572]
[1749294204062,0.0678834,152.13,152.1,76.63824817]
[1749294204230,0.0678834,152.13,152.11,10.65824817]
[1749294205465,0.0678834,152.13,152.12,17.23200572]
[1749294208761,0.0678834,152.13,152.12,43.23200572]
[1749294212330,0.0678834,152.13,152.12,43.73200572]
[1749294214056,0.0678834,152.13,152.12,17.73200572]
[1749294214864,0.0678834,152.13,152.12,43.73200572]
[1749294216064,0.0678834,152.13,152.12,26.5]
[1749294216656,0.0678834,152.13,152.12,0.5]
[1749294216922,10.72613157,152.13,152.09,16.8550064]
[1749294217048,10.72613157,152.13,152.08,57.19365463]
[1749294217049,10.65824817,152.12,152.08,57.19365463]
[1749294217251,10.65824817,152.11,152.07,16.83578998]
[1749294217450,0.0678834,152.13,152.1,10.65824817]
[1749294217672,0.0678834,152.13,152.07,73.23558744]
[1749294217673,0.0678834,152.13,152.11,10.65824817]
[1749294218263,0.0678834,152.13,152.1,10.65824817]
[1749294219177,0.0678834,152.13,152.11,6.57418973]
[1749294220440,0.0678834,152.13,152.11,17.2324379]
[1749294220669,0.0678834,152.13,152.12,10.65824817]
[1749294221259,0.0678834,152.13,152.1,10.65824817]
[1749294222277,0.0678834,152.13,152.09,33.67077522]
[1749294223376,10.72613157,152.13,152.09,17.23330241]
[1749294223684,10.72613157,152.13,152.09,6.57505424]
[1749294223881,0.0678834,152.13,152.12,36.65824817]
[1749294224074,0.0678834,152.13,152.12,76.73824817]
[1749294224749,0.0678834,152.13,152.12,83.31200572]
[1749294227356,0.0678834,152.13,152.12,46.65375755]
[1749294229377,0.0678834,152.13,152.12,40.08]
[1749294231976,0.0678834,152.13,152.12,46.65375755]
[1749294232180,0.0678834,152.13,152.12,57.31200572]
[1749294233886,0.0678834,152.13,152.12,17.23200572]
[1749294242100,10.72613157,152.13,152.09,10.26]
[1749294242311,10.65824817,152.11,152.06,10.65824817]
[1749294242595,0.0678834,152.13,152.06,36.65824817]
[1749294242596,10.65824817,152.1,152.06,36.65824817]
[1749294242987,10.65824817,152.11,152.06,36.65824817]
[1749294243190,10.65824817,152.11,152.07,6.57591898]
[1749294243697,10.65824817,152.11,152.07,17.23416715]
[1749294243901,10.65824817,152.12,152.08,10.65824817]
[1749294244605,10.72613157,152.13,152.08,10.65824817]
[1749294245491,10.72613157,152.13,152.08,17.23336406]
[1749294245810,10.72613157,152.13,152.09,10.65824817]
[1749294246183,0.0678834,152.13,152.09,10.65824817]
[1749294246927,10.72613157,152.13,152.09,10.65824817]
[1749294247380,10.72613157,152.13,152.08,17.23336406]
[1749294248278,10.72613157,152.13,152.09,10.65824817]
[1749294248695,0.0678834,152.13,152.09,10.65824817]
[1749294248902,0.0678834,152.13,152.11,10.65824817]
[1749294249094,0.0678834,152.13,152.12,10.65824817]
[1749294249510,0.0678834,152.13,152.12,17.23200572]
[1749294252503,0.0678834,152.13,152.12,17.73200572]
[1749294255604,0.0678834,152.13,152.12,7.07375755]
[1749294256194,0.0678834,152.13,152.12,6.57375755]
[1749294257091,0.0678834,152.13,152.1,10.32]
[1749294257307,10.72613157,152.13,152.1,10.32]
[1749294257504,10.65824817,152.12,152.1,10.32]
[1749294257702,10.65824817,152.12,152.09,6.57478916]
[1749294258399,10.65824817,152.12,152.1,0.5]
[1749294258803,10.65824817,152.12,152.09,6.57478916]
[1749294260818,10.72613157,152.13,152.09,6.57478916]
[1749294262615,17.29967563,152.13,152.08,36.65824817]
[1749294262815,10.65824817,152.11,152.08,26.0]
[1749294263493,10.65824817,152.11,152.07,6.57586948]
[1749294263808,10.65824817,152.12,152.07,17.23411765]
[1749294266926,10.65824817,152.12,152.09,6.57505424]
[1749294269518,10.65824817,152.12,152.08,6.57548658]
[1749294269720,10.65824817,152.12,152.08,17.23373475]
[1749294272524,10.65824817,152.12,152.08,6.57548658]
[1749294273611,10.65824817,152.11,152.07,17.23412343]
[1749294273828,10.65824817,152.1,152.06,87.01824817]
[1749294274522,10.65824817,152.11,152.07,10.65824817]
[1749294274729,10.65824817,152.11,152.07,17.23380641]
[1749294275399,10.65824817,152.12,152.08,10.65824817]
[1749294275728,0.0678834,152.13,152.09,10.65824817]
[1749294275729,10.72613157,152.13,152.09,10.65824817]
[1749294276743,0.0678834,152.13,152.12,10.65824817]
[1749294278226,0.0678834,152.13,152.11,50.67824817]
[1749294278714,0.0678834,152.13,152.12,17.23200572]
[1749294282334,0.0678834,152.13,152.12,6.57375755]
[1749294283330,0.0678834,152.13,152.11,46.59402329]
[1749294283515,10.72613157,152.13,152.1,6.57449466]
[1749294283714,10.72613157,152.13,152.09,83.27319108]
[1749294283919,10.72613157,152.13,152.09,72.61494291]
[1749294284312,10.65824817,152.12,152.09,66.04]
[1749294284518,10.65824817,152.12,152.09,72.61500015]
[1749294285533,10.65824817,152.12,152.06,26.75994017]
[1749294285534,10.65824817,152.1,152.06,10.32]
[1749294286629,10.65824817,152.1,152.06,16.89619686]
[1749294287908,10.65824817,152.09,152.06,10.32]
[1749294288108,10.65824817,152.08,152.05,6.57673179]
[1749294289739,10.65824817,152.08,152.04,17.23535236]
[1749294289940,10.65824817,152.07,152.04,6.57710419]
[1749294290948,10.65824817,152.08,152.04,6.57710419]
[1749294295119,10.65824817,152.08,152.04,17.23535236]
[1749294300644,10.65824817,152.09,152.04,17.23535236]
[1749294304425,10.65824817,152.08,152.04,17.23535236]
[1749294305132,10.65824817,152.06,152.02,20.97824817]
[1749294306445,10.65824817,152.07,152.02,16.8978825]
[1749294306647,10.65824817,152.07,152.02,27.55613067]
[1749294307249,10.65824817,152.07,152.03,10.65824817]
[1749294307450,12.26974817,152.08,152.03,10.65824817]
[1749294308651,12.26974817,152.08,152.04,6.57721652]
[1749294309448,10.65824817,152.07,152.04,6.57721652]
[1749294311242,12.26974817,152.08,152.04,6.57721652]
[1749294313745,10.65824817,152.07,152.04,6.57721652]
[1749294314446,10.65824817,152.07,152.03,6.57748183]
[1749294314649,10.65824817,152.06,152.02,27.55621154]
[1749294315044,10.65824817,152.06,152.02,17.23621154]
[1749294315842,10.65824817,152.07,152.02,17.23621154]
[1749294316665,12.26974817,152.08,152.03,10.65824817]
[1749294318672,12.26974817,152.08,152.04,6.57721652]
[1749294319372,10.65824817,152.07,152.04,6.57721652]
[1749294319573,10.65824817,152.07,152.02,16.44520457]
[1749294319574,10.65824817,152.06,152.02,10.65824817]
[1749294320149,1.6115,152.08,152.05,10.65824817]
[1749294320385,1.6115,152.08,152.04,10.65824817]
[1749294320873,1.6115,152.08,152.05,6.57678395]
[1749294325281,12.26974817,152.08,152.05,6.57678395]
[1749294327385,12.26974817,152.08,152.04,6.57721652]
[1749294329262,8.43651617,152.08,152.03,13.40266531]
[1749294331390,8.43651617,152.08,152.04,6.82501617]
[1749294332488,1.6115,152.08,152.05,6.57678395]
[1749294332700,8.43651617,152.08,152.05,6.57678395]
[1749294332868,6.82501617,152.07,152.02,17.10501617]
[1749294333070,6.82501617,152.07,152.03,6.5774865]
[1749294333773,6.82501617,152.07,152.03,13.40250267]
[1749294335898,6.82501617,152.07,152.02,6.57808183]
[1749294336199,6.82501617,152.06,152.02,13.403098]
[1749294337984,6.82501617,152.07,152.02,13.403098]
[1749294344474,13.40094952,152.07,152.02,13.403098]
[1749294345201,6.82501617,152.06,152.02,13.403098]
[1749294347297,6.82501617,152.07,152.03,6.82501617]
[1749294348513,6.82501617,152.07,152.03,13.40239682]
[1749294350211,6.82501617,152.07,152.02,13.403098]
[1749294360314,8.18703915,152.08,152.02,13.403098]
[1749294360515,6.82501617,152.07,152.02,13.403098]
[1749294362402,6.82501617,152.05,152.01,6.57841902]
[1749294363204,6.82501617,152.04,152.0,23.68388396]
[1749294363410,6.82501617,152.01,151.97,6.82501617]
[1749294363810,6.82501617,152.01,151.97,32.82501617]
[1749294364216,6.82501617,152.01,151.98,6.57981313]
[1749294366742,6.82501617,151.99,151.97,6.58008744]
[1749294367076,6.82501617,151.98,151.95,6.58109316]
[1749294368902,6.82501617,151.97,151.94,6.58139741]
[1749294370434,6.82501617,151.98,151.94,13.40641358]
[1749294375526,6.4067,152.03,151.94,23.03526077]
[1749294375725,6.82501617,152.0,151.96,6.82501617]
[1749294376340,6.82501617,152.01,151.96,6.82501617]
[1749294376541,6.82501617,152.01,151.97,6.5802461]
[1749294377339,6.82501617,152.0,151.97,6.5802461]
[1749294381358,18.64964886,152.02,151.97,6.5802461]
[1749294381521,6.82501617,152.0,151.97,6.5802461]
[1749294385339,6.82501617,151.99,151.97,6.5802461]
[1749294385536,6.82501617,151.99,151.96,6.58063837]
[1749294386625,6.82501617,151.99,151.95,13.40595925]
[1749294387071,6.82501617,151.97,151.92,48.14]
[1749294387362,6.82501617,151.97,151.92,94.86501617]
[1749294387546,6.82501617,151.97,151.92,56.96501617]
[1749294387938,6.82501617,151.97,151.93,6.82501617]
[1749294388135,6.82501617,151.97,151.93,13.40657591]
[1749294389022,6.82501617,151.97,151.93,6.58155974]
[1749294389219,6.82501617,151.97,151.93,13.40657591]
[1749294391252,6.82501617,151.98,151.93,13.40657591]
[1749294391461,6.82501617,151.98,151.93,6.58155974]
[1749294391637,6.82501617,151.98,151.93,13.40657591]
[1749294399160,6.82501617,151.98,151.93,29.86152226]
[1749294399368,0.28432314,152.01,151.95,6.82501617]
[1749294399545,6.82501617,152.0,151.96,6.82501617]
[1749294399740,6.82501617,152.01,151.96,6.82501617]
[1749294400263,6.82501617,152.01,151.97,6.82501617]
[1749294400841,6.82501617,152.01,151.98,6.57981313]
[1749294402854,6.82501617,152.01,151.97,6.5802461]
[1749294404769,6.82501617,152.0,151.97,6.5802461]
[1749294407964,40.5875093,152.03,151.97,6.5802461]
[1749294408174,6.82501617,152.0,151.97,6.5802461]
[1749294412165,6.82501617,152.0,151.97,6.5802461]
[1749294412682,6.82501617,152.01,151.97,6.5802461]
[1749294414386,6.82501617,152.01,151.97,13.40526227]
[1749294415988,1.603,152.03,151.98,6.82501617]
[1749294416191,6.82501617,152.04,152.0,6.82501617]
[1749294418467,6.82501617,152.04,152.0,13.40391507]
[1749294421277,6.82501617,152.04,151.99,6.82501617]
[1749294422490,6.82501617,152.04,152.0,6.57894736]
[1749294426781,43.51010928,152.07,152.02,6.82501617]
[1749294426782,18.64964886,152.06,152.02,6.82501617]
[1749294426980,1.5656,152.07,152.03,6.82501617]
[1749294427202,148.5,152.08,152.04,6.82501617]
[1749294427509,25.47466503,152.09,152.04,6.82501617]
[1749294428075,25.47466503,152.09,152.05,6.57678395]